fUSD/lending_fUSD_20251227
["ID","MTS","AMOUNT","RATE_DAILY","PERIOD"]
[399908566,1766853046039,-500.0,0.00016999,2]
[399908567,1766853046050,-500.0,0.00016999,2]
[399908568,1766853046060,-500.0,0.00016999,2]
[399908569,1766853046070,-500.0,0.00016999,2]
[399908571,1766853046081,-500.0,0.00016999,2]
[399908574,1766853046092,-516.47256288,0.00016999,2]
[399908577,1766853046102,-500.0,0.00016999,2]
[399908578,1766853046112,-500.0,0.00016999,2]
[399908580,1766853046123,-500.0,0.00016999,2]
[399908582,1766853046133,-500.0,0.00016999,2]
[399908584,1766853046143,-508.77600646,0.00016999,2]
[399908586,1766853046153,-500.0,0.00016999,2]
[399908588,1766853046163,-500.0,0.00016999,2]
[399908591,1766853046174,-500.0,0.00016999,2]
[399908593,1766853046184,-500.0,0.00016999,2]
[399908594,1766853046194,-500.0,0.00016999,2]
[399908596,1766853046204,-500.0,0.00016999,2]
[399908599,1766853046214,-403.12239896,0.00016999,2]
[399908600,1766853046223,-544.93100005,0.00016999,2]
[399908602,1766853046233,-500.0,0.00016999,2]
[399908605,1766853046243,-500.0,0.00016999,2]
[399908607,1766853046253,-500.0,0.00016999,2]
[399908608,1766853046263,-500.0,0.00016999,2]
[399908611,1766853046272,-500.0,0.00016999,2]
[399908613,1766853046282,-168.5167992,0.00016999,2]
[399908614,1766853046291,-500.0,0.00016999,2]
[399908616,1766853046302,-272.22198919,0.00016999,2]
[399908619,1766853046312,-214.56262391,0.00016999,2]
[399908621,1766853046323,-2806.59644096,0.00017,2]
[399908661,1766853777553,205.4,7.051e-05,2]
[399908674,1766854125232,-289.34811439,0.00013699,2]
[399908679,1766854231492,-712.104928,0.0001363,2]
[399908680,1766854231504,-300.0,0.00013664,2]
[399908681,1766854231515,-129.39188561,0.00013699,2]
[399908682,1766854231525,-195.0,0.00013703,2]
[399908683,1766854231535,-165.49375098,0.00013703,2]
[399908684,1766854231548,-434.50624902,0.00013703,2]
[399908688,1766854231853,-249.85769281,0.00013739,2]
[399908689,1766854231868,-50.14230719,0.00013739,2]
[399908690,1766854231879,-215.62,0.00013778,2]
[399908691,1766854231890,-250.0,0.00013886,2]
[399908692,1766854231901,-346.63864587,0.00014025,2]
[399908693,1766854231911,-999.0,0.00014131,3]
[399908694,1766854231927,-300.0,0.00014162,2]
[399908695,1766854231938,-1200.0,0.00014162,2]
[399908696,1766854231949,-300.0,0.00014162,2]
[399908697,1766854231959,-150.0,0.00014172,2]
[399908698,1766854231969,-153.924,0.00014273,2]
[399908699,1766854231980,-1100.55,0.00014319,2]
[399908700,1766854231990,-1000.0,0.00014343,2]
[399908701,1766854232001,-500.0,0.00014373,2]
[399908702,1766854232011,-200.0,0.00014448,2]
[399908703,1766854232022,-205.35321334,0.000149,2]
[399908704,1766854232032,-1000.0,0.00014921,2]
[399908705,1766854232043,-201.68,0.00014949,2]
[399908706,1766854232053,-7365.8118336,0.00014986,2]
[399908707,1766854232078,-872.5988586,0.00014986,2]
[399908708,1766854232090,-799.595,0.00014986,2]
[399908709,1766854232103,-580.31999564,0.00014986,2]
[399908710,1766854232116,-427.13399201,0.00014986,2]
[399908711,1766854232128,-250.3928,0.00014986,2]
[399908712,1766854232144,-6018.16722015,0.00014986,2]
[399908713,1766854232154,-300.0,0.00014993,2]
[399908714,1766854232164,-195.0,0.00014993,2]
[399908715,1766854232173,-600.0,0.00014993,2]
[399908716,1766854232183,-158.54862959,0.00014993,2]
[399908717,1766854232193,-173.69,0.00015,2]
[399908718,1766854232203,-195.0,0.00015068,2]
[399908719,1766854232213,-600.0,0.00015068,2]
[399908720,1766854232223,-151.0,0.00015077,2]
[399908721,1766854232233,-207.4,0.00015077,2]
[399908722,1766854232243,-151.0,0.00015077,2]
[399908723,1766854232254,-151.0,0.00015077,2]
[399908724,1766854232264,-151.0,0.00015077,2]
[399908725,1766854232274,-151.0,0.00015077,2]
[399908726,1766854232289,-151.0,0.00015077,2]
[399908727,1766854232299,-151.0,0.00015077,2]
[399908728,1766854232309,-151.0,0.00015077,2]
[399908729,1766854232319,-151.0,0.00015077,2]
[399908730,1766854232329,-151.0,0.00015077,2]
[399908731,1766854232339,-151.0,0.00015077,2]
[399908732,1766854232349,-300.93,0.00015077,2]
[399908733,1766854232359,-8255.16979026,0.00015088,2]
[399908734,1766854232371,-326.58769091,0.00015088,2]
[399908735,1766854232383,-5197.19040461,0.00015088,2]
[399908741,1766854237517,-783.7022747,0.00015088,2]
[399908742,1766854237571,-987.18610805,0.00015088,2]
[399908743,1766854237583,-42.54858034,0.00015088,2]
[399908744,1766854237593,-250.0,0.00015155,2]
[399908745,1766854237602,-150.0,0.00015288,2]
[399908746,1766854237612,-150.0,0.00015288,2]
[399908747,1766854237622,-150.0,0.00015288,2]
[399908748,1766854237631,-150.0,0.00015288,2]
[399908749,1766854237640,-150.0,0.00015288,2]
[399908750,1766854237650,-150.0,0.00015288,2]
[399908751,1766854237659,-150.0,0.00015288,2]
[399908752,1766854237669,-150.0,0.00015288,2]
[399908753,1766854237678,-150.0,0.00015288,2]
[399908754,1766854237687,-150.0,0.00015288,2]
[399908755,1766854237697,-150.0,0.00015288,2]
[399908756,1766854237707,-150.0,0.00015288,2]
[399908757,1766854237716,-150.0,0.00015288,2]
[399908758,1766854237736,-150.0,0.00015288,2]
[399908759,1766854237747,-15592.38484886,0.00015289,2]
[399908760,1766854237758,-255.0,0.00015291,2]
[399908762,1766854237768,-150.0,0.00015326,2]
[399908764,1766854237778,-150.0,0.00015341,2]
[399908766,1766854237787,-150.0,0.00015344,2]
[399908768,1766854237797,-300.93,0.00015351,2]
[399908770,1766854237807,-150.0,0.00015365,2]
[399908772,1766854237817,-150.0,0.00015365,2]
[399908773,1766854237826,-150.0,0.00015388,2]
[399908774,1766854237836,-150.0,0.00015394,2]
[399908775,1766854237846,-150.0,0.00015401,2]
[399908776,1766854237855,-150.0,0.00015403,2]
[399908777,1766854237865,-150.0,0.00015429,2]
[399908779,1766854237874,-150.0,0.00015442,2]
[399908781,1766854237884,-150.0,0.00015442,2]
[399908783,1766854237893,-150.0,0.00015447,2]
[399908784,1766854237903,-150.0,0.00015458,2]
[399908785,1766854237913,-1000.0,0.00015468,2]
[399908786,1766854237922,-150.0,0.00015481,2]
[399908787,1766854237932,-150.0,0.00015488,2]
[399908788,1766854237942,-14761.86715048,0.00015491,2]
[399908789,1766854237955,-830.51769838,0.00015491,2]
[399908790,1766854237964,-24.43633901,0.000155,2]
[399908791,1766854237977,-125.56366099,0.000155,2]
[399908792,1766854237987,-420.0,0.00015513,2]
[399908793,1766854237997,-420.0,0.00015513,2]
[399908794,1766854238007,-30.21628829,0.00015514,2]
[399908795,1766854238019,-119.78371171,0.00015514,2]
[399908796,1766854238028,-150.0,0.00015519,2]
[399908797,1766854238039,-150.0,0.00015519,2]
[399908798,1766854238050,-150.0,0.0001553,2]
[399908799,1766854238060,-150.0,0.00015553,2]
[399908800,1766854238070,-150.0,0.00015558,2]
[399908801,1766854238080,-95.06743339,0.00015571,2]
[399908802,1766854238100,-54.93256661,0.00015571,2]
[399908803,1766854238111,-150.0,0.00015571,2]
[399908804,1766854238121,-150.0,0.00015571,2]
[399908805,1766854238132,-1680.0,0.00015579,2]
[399908806,1766854238142,-150.0,0.00015587,2]
[399908807,1766854238154,-69.90677354,0.00015597,2]
[399908816,1766854239573,-80.09322646,0.00015597,2]
[399908817,1766854239584,-150.0,0.00015597,2]
[399908818,1766854239594,-150.0,0.00015606,2]
[399908819,1766854239605,-830.5618777,0.00015607,2]
[399908820,1766854239617,-1669.4381223,0.00015607,2]
[399908821,1766854239627,-500.0,0.00015609,2]
[399908822,1766854239637,-500.0,0.00015609,2]
[399908823,1766854239647,-500.0,0.00015609,2]
[399908824,1766854239656,-500.0,0.00015609,2]
[399908825,1766854239666,-500.0,0.00015609,2]
[399908826,1766854239676,-118.3318777,0.00015609,2]
[399908827,1766854239693,-305.57387787,0.00015609,2]
[399908828,1766854239704,-76.09424443,0.00015609,2]
[399908829,1766854239719,-500.0,0.00015609,2]
[399908830,1766854239729,-500.0,0.00015609,2]
[399908831,1766854239739,-500.0,0.00015609,2]
[399908832,1766854239750,-500.0,0.00015609,2]
[399908833,1766854239760,-1000.0,0.00015609,2]
[399908834,1766854239771,-500.0,0.00015609,2]
[399908835,1766854239781,-500.0,0.00015609,2]
[399908836,1766854239791,-500.0,0.00015609,2]
[399908837,1766854239801,-574.12855637,0.00015609,2]
[399908838,1766854239811,-250.0,0.00015609,2]
[399908839,1766854239821,-250.0,0.00015609,2]
[399908840,1766854239832,-250.0,0.00015609,2]
[399908841,1766854239842,-250.0,0.00015609,2]
[399908842,1766854239853,-250.0,0.00015609,2]
[399908843,1766854239862,-250.0,0.00015609,2]
[399908844,1766854239873,-250.0,0.00015609,2]
[399908845,1766854239883,-500.0,0.00015609,2]
[399908846,1766854239893,-250.0,0.00015609,2]
[399908847,1766854239903,-250.0,0.00015609,2]
[399908849,1766854239913,-500.0,0.00015609,2]
[399908851,1766854239923,-500.0,0.00015609,2]
[399908853,1766854239933,-250.0,0.00015609,2]
[399908855,1766854239944,-500.0,0.00015609,2]
[399908856,1766854239954,-250.0,0.00015609,2]
[399908857,1766854239965,-500.0,0.00015609,2]
[399908858,1766854239975,-300.93,0.00015625,2]
[399908859,1766854239985,-150.0,0.00015627,2]
[399908860,1766854239995,-150.0,0.00015627,2]
[399908861,1766854240006,-150.0,0.00015635,2]
[399908862,1766854240016,-150.0,0.00015659,2]
[399908863,1766854240027,-150.0,0.00015674,2]
[399908864,1766854240038,-150.0,0.00015674,2]
[399908865,1766854240048,-150.0,0.00015684,2]
[399908866,1766854240057,-150.0,0.00015687,2]
[399908867,1766854240068,-15592.38484886,0.00015692,2]
[399908868,1766854240081,-214.03542937,0.00015706,2]
[399908869,1766854240091,-150.0,0.00015712,2]
[399908870,1766854240102,-150.0,0.00015712,2]
[399908871,1766854240112,-150.0,0.00015712,2]
[399908872,1766854240122,-151.0,0.00015716,2]
[399908873,1766854240132,-151.0,0.00015716,2]
[399908874,1766854240142,-151.0,0.00015716,2]
[399908875,1766854240152,-204.93,0.00015716,2]
[399908876,1766854240162,-151.0,0.0001574,2]
[399908877,1766854240172,-151.0,0.0001574,2]
[399908878,1766854240183,-150.0,0.00015741,2]
[399908879,1766854240193,-150.0,0.00015751,2]
[399908880,1766854240203,-150.0,0.00015751,2]
[399908881,1766854240214,-150.0,0.00015765,2]
[399908882,1766854240224,-150.0,0.00015773,2]
[399908883,1766854240234,-150.0,0.00015787,2]
[399908884,1766854240244,-150.0,0.0001579,2]
[399908885,1766854240255,-150.0,0.00015797,2]
[399908886,1766854240265,-150.0,0.00015818,2]
[399908887,1766854240280,-150.0,0.00015828,2]
[399908888,1766854240290,-150.0,0.00015828,2]
[399908889,1766854240300,-150.0,0.00015854,2]
[399908890,1766854240310,-150.0,0.00015854,2]
[399908891,1766854240321,-150.0,0.00015854,2]
[399908892,1766854240331,-150.0,0.00015854,2]
[399908893,1766854240341,-150.0,0.00015867,2]
[399908894,1766854240351,-150.0,0.00015872,2]
[399908895,1766854240361,-500.0,0.00015878,2]
[399908896,1766854240371,-500.0,0.00015878,2]
[399908897,1766854240381,-150.0,0.00015887,2]
[399908898,1766854240392,-5961.41597286,0.00015893,2]
[399908899,1766854240405,-1169.5132345,0.00015893,2]
[399908900,1766854240417,-578.57186378,0.00015893,2]
[399908901,1766854240441,-2306.95635147,0.00015893,2]
[399908907,1766854243291,-254.94538776,0.00015893,2]
[399908908,1766854243304,-460.71535664,0.00015893,2]
[399908909,1766854243316,-267.470874,0.00015893,2]
[399908910,1766854243342,-3411.37260033,0.00015893,2]
[399908911,1766854243589,-1181.42320752,0.00015893,2]
[399908912,1766854243599,-300.93,0.00015899,2]
[399908913,1766854243609,-150.0,0.00015905,2]
[399908914,1766854243618,-150.0,0.00015905,2]
[399908915,1766854243628,-150.0,0.00015911,2]
[399908916,1766854243637,-150.0,0.00015925,2]
[399908917,1766854243647,-150.0,0.00015944,2]
[399908918,1766854243656,-150.0,0.00015967,2]
[399908919,1766854243666,-150.0,0.00015967,2]
[399908920,1766854243675,-217.00814366,0.00015974,2]
[399908921,1766854243685,-150.0,0.00015978,2]
[399908922,1766854243695,-150.0,0.00015983,2]
[399908923,1766854243704,-150.0,0.00015983,2]
[399908924,1766854243713,-150.0,0.00015987,2]
[399908925,1766854243723,-150.0,0.00015995,2]
[399908926,1766854243732,-150.0,0.00016016,2]
[399908927,1766854243741,-32.53946982,0.00016021,2]
[399908928,1766854243753,-117.46053018,0.00016021,2]
[399908929,1766854243764,-150.0,0.00016024,2]
[399908930,1766854243774,-150.0,0.00016031,2]
[399908931,1766854243783,-150.0,0.0001606,2]
[399908932,1766854243793,-150.0,0.0001606,2]
[399908933,1766854243803,-150.0,0.0001608,2]
[399908934,1766854243813,-150.0,0.00016084,2]
[399908935,1766854243822,-150.0,0.00016087,2]
[399908936,1766854243832,-1199.95862263,0.00016095,2]
[399908937,1766854243843,-1715.1,0.00016095,2]
[399908938,1766854243855,-1288.95483898,0.00016095,2]
[399908939,1766854243867,-2630.64669746,0.00016095,2]
[399908940,1766854243878,-466.7936093,0.00016095,2]
[399908941,1766854243890,-1612.92171078,0.00016095,2]
[399908947,1766854245602,-2652.81855684,0.00016095,2]
[399908948,1766854245615,-3067.597645,0.00016095,2]
[399908949,1766854245627,-957.59316787,0.00016095,2]
[399908950,1766854245637,-150.0,0.00016098,2]
[399908951,1766854245648,-718.72,0.00016133,2]
[399908952,1766854245659,-1000.0,0.00016136,2]
[399908953,1766854245670,-150.0,0.00016137,2]
[399908954,1766854245681,-150.0,0.00016137,2]
[399908955,1766854245691,-150.0,0.00016137,2]
[399908956,1766854245701,-150.0,0.00016137,2]
[399908957,1766854245710,-150.0,0.00016137,2]
[399908958,1766854245720,-150.0,0.00016137,2]
[399908959,1766854245729,-768.68683165,0.00016139,2]
[399908960,1766854245741,-4400.33003597,0.00016139,2]
[399908961,1766854245753,-523.39313238,0.00016139,2]
[399908962,1766854245763,-300.97495801,0.00016173,2]
[399908963,1766854245773,-150.0,0.00016176,2]
[399908964,1766854245783,-150.0,0.00016187,2]
[399908965,1766854245794,-150.0,0.0001619,2]
[399908966,1766854245804,-1492.522,0.00016191,2]
[399908967,1766854245814,-150.0,0.00016194,2]
[399908968,1766854245824,-150.0,0.00016214,2]
[399908969,1766854245834,-150.0,0.00016214,2]
[399908970,1766854245844,-150.0,0.00016243,2]
[399908971,1766854245854,-150.0,0.0001625,2]
[399908972,1766854245864,-150.0,0.00016253,2]
[399908973,1766854245875,-150.0,0.00016258,2]
[399908974,1766854245884,-150.0,0.00016279,2]
[399908975,1766854245894,-150.0,0.00016287,2]
[399908976,1766854245904,-150.0,0.00016291,2]
[399908977,1766854245914,-150.0,0.00016291,2]
[399908978,1766854245924,-1737.32502302,0.00016296,2]
[399908979,1766854245936,-4311.20327443,0.00016296,2]
[399908980,1766854245947,-379.12000001,0.00016296,2]
[399908981,1766854245959,-692.33650997,0.00016296,2]
[399908982,1766854245971,-281.178,0.00016296,2]
[399908984,1766854245983,-8191.22204143,0.00016296,2]
[399908985,1766854245994,-150.0,0.00016296,2]
[399908988,1766854246004,-238.05774446,0.00016299,2]
[399908989,1766854246014,-262.23578811,0.00016299,2]
[399908991,1766854246024,-500.0,0.00016299,2]
[399908993,1766854246034,-500.0,0.00016299,2]
[399908995,1766854246044,-500.0,0.00016299,2]
[399908996,1766854246054,-500.0,0.00016299,2]
[399908997,1766854246064,-500.0,0.00016299,2]
[399908998,1766854246074,-500.0,0.00016299,2]
[399908999,1766854246084,-500.0,0.00016299,2]
[399909000,1766854246094,-500.0,0.00016299,2]
[399909001,1766854246104,-500.0,0.00016299,2]
[399909002,1766854246114,-500.0,0.00016299,2]
[399909003,1766854246124,-500.0,0.00016299,2]
[399909004,1766854246133,-500.0,0.00016299,2]
[399909005,1766854246143,-500.0,0.00016299,2]
[399909006,1766854246153,-500.0,0.00016299,2]
[399909008,1766854246163,-500.0,0.00016299,2]
[399909010,1766854246173,-500.0,0.00016299,2]
[399909011,1766854246182,-500.0,0.00016299,2]
[399909012,1766854246192,-366.89934637,0.00016299,2]
[399909013,1766854246203,-500.0,0.00016299,2]
[399909014,1766854246213,-500.0,0.00016299,2]
[399909015,1766854246223,-500.0,0.00016299,2]
[399909016,1766854246233,-500.0,0.00016299,2]
[399909017,1766854246243,-500.0,0.00016299,2]
[399909018,1766854246253,-500.0,0.00016299,2]
[399909019,1766854246263,-500.0,0.00016299,2]
[399909020,1766854246273,-500.0,0.00016299,2]
[399909021,1766854246283,-500.0,0.00016299,2]
[399909022,1766854246293,-500.0,0.00016299,2]
[399909023,1766854246304,-500.0,0.00016299,2]
[399909024,1766854246313,-500.0,0.00016299,2]
[399909025,1766854246323,-500.0,0.00016299,2]
[399909026,1766854246333,-500.0,0.00016299,2]
[399909027,1766854246343,-500.0,0.00016299,2]
[399909028,1766854246353,-150.0,0.00016307,2]
[399909029,1766854246362,-150.0,0.00016307,2]
[399909030,1766854246372,-150.0,0.0001633,2]
[399909031,1766854246382,-150.0,0.00016349,2]
[399909032,1766854246391,-150.0,0.00016363,2]
[399909033,1766854246402,-150.0,0.00016369,2]
[399909034,1766854246411,-150.0,0.00016369,2]
[399909035,1766854246421,-150.0,0.00016387,2]
[399909036,1766854246431,-150.0,0.00016402,2]
[399909037,1766854246441,-150.0,0.00016407,2]
[399909038,1766854246451,-150.0,0.0001642,2]
[399909039,1766854246461,-150.0,0.0001642,2]
[399909040,1766854246473,-150.0,0.0001642,2]
[399909041,1766854246486,-150.0,0.0001642,2]
[399909042,1766854246495,-150.0,0.00016441,2]
[399909043,1766854246506,-150.0,0.00016446,2]
[399909044,1766854246516,-150.0,0.00016446,2]
[399909045,1766854246527,-150.0,0.00016455,2]
[399909046,1766854246537,-150.0,0.00016477,2]
[399909047,1766854246549,-150.0,0.00016484,2]
[399909048,1766854246559,-150.0,0.00016487,2]
[399909049,1766854246569,-15592.38484886,0.00016497,2]
[399909050,1766854246579,-150.0,0.00016501,2]
[399909051,1766854246588,-150.0,0.00016509,2]
[399909052,1766854246598,-150.0,0.00016523,2]
[399909053,1766854246608,-150.0,0.00016523,2]
[399909054,1766854246618,-150.0,0.00016533,2]
[399909055,1766854246628,-150.0,0.00016562,2]
[399909056,1766854246638,-150.0,0.00016562,2]
[399909057,1766854246648,-150.0,0.00016562,2]
[399909058,1766854246659,-150.0,0.00016587,2]
[399909059,1766854246669,-150.0,0.0001659,2]
[399909060,1766854246679,-150.0,0.000166,2]
[399909061,1766854246688,-150.0,0.000166,2]
[399909062,1766854246699,-150.0,0.00016615,2]
[399909063,1766854246709,-150.0,0.00016639,2]
[399909064,1766854246719,-150.0,0.00016647,2]
[399909065,1766854246728,-150.0,0.00016647,2]
[399909066,1766854246738,-396.89735401,0.0001666,2]
[399909067,1766854246749,-150.0,0.00016668,2]
[399909068,1766854246758,-150.0,0.00016677,2]
[399909069,1766854246768,-150.0,0.00016677,2]
[399909070,1766854246778,-150.0,0.00016687,2]
[399909071,1766854246788,-15592.38484886,0.00016699,2]
[399909072,1766854246798,-150.0,0.00016703,2]
[399909073,1766854246807,-150.0,0.00016703,2]
[399909074,1766854246816,-150.0,0.00016703,2]
[399909075,1766854246827,-150.0,0.00016716,2]
[399909076,1766854246836,-150.0,0.00016721,2]
[399909077,1766854246845,-150.0,0.00016744,2]
[399909078,1766854246855,-150.0,0.00016755,2]
[399909079,1766854246864,-150.0,0.00016755,2]
[399909080,1766854246874,-150.0,0.0001676,2]
[399909081,1766854246884,-150.0,0.00016774,2]
[399909082,1766854246893,-150.0,0.00016786,2]
[399909083,1766854246903,-150.0,0.00016793,2]
[399909084,1766854246913,-150.0,0.00016816,2]
[399909085,1766854246923,-150.0,0.00016827,2]
[399909086,1766854246933,-150.0,0.00016832,2]
[399909087,1766854246942,-150.0,0.00016832,2]
[399909088,1766854246951,-150.0,0.00016845,2]
[399909089,1766854246962,-150.0,0.0001687,2]
[399909090,1766854246972,-150.0,0.00016873,2]
[399909091,1766854246982,-156.4915266,0.00016879,2]
[399909092,1766854246992,-8733.2799654,0.00016879,2]
[399909093,1766854247002,-150.0,0.0001688,2]
[399909094,1766854247013,-150.0,0.00016886,2]
[399909095,1766854247023,-500.0,0.00016899,2]
[399909096,1766854247033,-500.0,0.00016899,2]
[399909097,1766854247043,-155.43592284,0.000169,2]
[399909098,1766854247052,-15592.38484886,0.000169,2]
[399909099,1766854247061,-17415.16701558,0.000169,2]
[399909100,1766854247075,-103162.08831545,0.000169,2]
[399909101,1766854247085,-235.93109982,0.000169,2]
[399909102,1766854247095,-150.0,0.00016909,2]
[399909103,1766854247104,-150.0,0.00016909,2]
[399909104,1766854247114,-150.0,0.0001693,2]
[399909105,1766854247124,-150.0,0.00016933,2]
[399909106,1766854247134,-150.0,0.00016948,2]
[399909107,1766854247144,-265.28297263,0.00016986,2]
[399909108,1766854247154,-192.41351944,0.00016986,2]
[399909109,1766854247164,-239.11448271,0.00016986,2]
[399909110,1766854247174,-218.69134598,0.00016986,2]
[399909111,1766854247184,-150.0,0.00016986,2]
[399909112,1766854247194,-150.00000001,0.00016986,2]
[399909113,1766854247204,-150.0,0.00016986,2]
[399909114,1766854247214,-150.0,0.00016986,2]
[399909115,1766854247223,-238.27508382,0.00016986,2]
[399909116,1766854247233,-151.06348802,0.00016986,2]
[399909117,1766854247243,-150.0,0.00016986,2]
[399909118,1766854247253,-150.0,0.00016986,2]
[399909119,1766854247263,-203.0,0.00016993,2]
[399909120,1766854247272,-300.0,0.00016999,2]
[399909121,1766854247282,-688.94394477,0.00016999,2]
[399909122,1766854247291,-500.0,0.00016999,2]
[399909123,1766854247301,-500.0,0.00016999,2]
[399909124,1766854247310,-2466.0,0.00017,2]
[399909125,1766854247320,-44088.66087755,0.00017,2]
[399909126,1766854247332,-2686.21889647,0.00017,2]
[399909389,1766855431677,-613.27971139,0.00014185,2]
[399909390,1766855431688,-250.0,0.00014209,2]
[399909391,1766855431698,-582.10383336,0.00014232,2]
[399909392,1766855431727,-17.89616664,0.00014232,2]
[399909393,1766855431737,-250.0,0.0001425,2]
[399909394,1766855431748,-600.0,0.00014269,2]
[399909395,1766855431758,-1200.0,0.00014299,2]
[399909396,1766855431768,-157.0,0.00014372,2]
[399909397,1766855431778,-201.98303125,0.00014373,2]
[399909398,1766855431787,-500.0,0.00014373,2]
[399909399,1766855431797,-628.25452076,0.00014373,2]
[399909400,1766855431806,-500.0,0.00014373,2]
[399909401,1766855431816,-152.0,0.00014426,2]
[399909402,1766855431826,-613.27971139,0.00014503,2]
[399909403,1766855431835,-159.1,0.00014602,2]
[399909404,1766855431846,-3806.49,0.00014726,2]
[399909405,1766855431856,-150.0,0.00014752,2]
[399909406,1766855431866,-4196.74915397,0.0001478,2]
[399909407,1766855431876,-1218.79982472,0.00014786,2]
[399909408,1766855431888,-3353.64365017,0.00014786,2]
[399909409,1766855431900,-1770.27866958,0.00014786,2]
[399909410,1766855431911,-461.44401143,0.00014786,2]
[399909411,1766855431923,-263.83028063,0.00014786,2]
[399909412,1766855431935,-1765.86379233,0.00014786,2]
[399909413,1766855431946,-53939.18987972,0.00014786,2]
[399909414,1766855431966,-547.36651903,0.00014786,2]
[399909415,1766855431990,-32991.60429665,0.00014786,2]
[399909427,1766855437752,-580.25878155,0.00014786,2]
[399909428,1766855437765,-1907.28828516,0.00014786,2]
[399909429,1766855437805,-16317.84700903,0.00014786,2]
[399909430,1766855437816,-613.27971139,0.00014821,2]
[399909431,1766855437826,-136.35226365,0.00014837,2]
[399909432,1766855437838,-799.66773635,0.00014837,2]
[399909433,1766855437848,-151.0,0.00014877,2]
[399909434,1766855437858,-151.0,0.00014877,2]
[399909435,1766855437869,-151.0,0.00014877,2]
[399909436,1766855437878,-151.0,0.00014877,2]
[399909437,1766855437888,-151.0,0.00014877,2]
[399909438,1766855437898,-151.0,0.00014877,2]
[399909439,1766855437909,-151.0,0.00014877,2]
[399909440,1766855437919,-151.0,0.00014877,2]
[399909441,1766855437934,-151.0,0.00014877,2]
[399909442,1766855437944,-696.22588074,0.00014921,2]
[399909443,1766855437954,-1000.0,0.00014921,2]
[399909444,1766855437965,-183.60103291,0.00014934,2]
[399909445,1766855437977,-16.39896709,0.00014934,2]
[399909446,1766855437986,-150.0,0.00015288,2]
[399909447,1766855437997,-150.0,0.00015369,2]
[399909448,1766855438007,-72.19456839,0.00015449,2]
[399909449,1766855438019,-77.80543161,0.00015449,2]
[399909451,1766855438032,-572.19456839,0.00015468,2]
[399909453,1766855438045,-927.80543161,0.00015468,2]
[399909455,1766855438055,-150.0,0.0001553,2]
[399909457,1766855438067,-600.0,0.00015604,2]
[399909459,1766855438077,-250.0,0.00015604,2]
[399909461,1766855438087,-2500.0,0.00015604,2]
[399909462,1766855438097,-150.0,0.00015611,2]
[399909463,1766855438109,-150.0,0.00015692,2]
[399909464,1766855438120,-2500.0,0.00015707,2]
[399909465,1766855438130,-150.0,0.00015773,2]
[399909466,1766855438140,-151.0,0.00015781,2]
[399909468,1766855438151,-151.0,0.00015801,2]
[399909469,1766855438161,-151.0,0.00015801,2]
[399909470,1766855438172,-151.0,0.00015805,2]
[399909471,1766855438181,-150.0,0.00015854,2]
[399909472,1766855438192,-500.0,0.00015902,2]
[399909473,1766855438202,-500.0,0.00015902,2]
[399909474,1766855438212,-500.0,0.00015902,2]